[Event "ESP-chT 2nd Division 2019"]
[Site "Linares"]
[Date "2019.08.22"]
[Round "5.19"]
[White "Garcia Amoros, Pablo"]
[Black "Gonzalez Cano, Juan Jose"]
[Result "1/2-1/2"]
[ECO "C68"]
[WhiteElo "2101"]
[BlackElo "2019"]
[Annotator "ChessBase"]
[PlyCount "118"]
[EventDate "2019.08.19"]
[EventType "team-tourn"]
[EventCountry "ESP"]
[SourceTitle "playchess.com"]
[Source "ChessBase"]
[SourceQuality "1"]
[TimeControl "5400+30"]

1. e4 {[%emt 0:01:33]} e5 {[%emt 0:00:00]} 2. Nf3 {[%emt 0:00:13]} Nc6 {[%emt 0:00:00]} 3. Bb5 {[%emt 0:00:15]} a6 {[%emt 0:00:00]} 4. Bxc6 {[%emt 0:00:08]} dxc6 {[%emt 0:00:03]} 5. O-O {[%emt 0:00:07]} Bg4 {[%emt 0:01:28]} 6. h3 {[%emt 0:00:10]} h5 {[%emt 0:00:06]} 7. d3 {[%emt 0:00:09]} Qf6 {[%emt 0:00:09]} 8. Nbd2 {[%emt 0:00:11]} Ne7 {[%emt 0:00:36]} 9. Nc4 {[%emt 0:00:16]} Bxf3 {[%emt 0:01:37]} 10. Qxf3 {[%emt 0:00:06]} Qxf3 {[%emt 0:00:10]} 11. gxf3 {[%emt 0:00:06]} Ng6 {[%emt 0:00:04]} 12. Rd1 {[%emt 0:03:06]} Bd6 {[%emt 0:14:24]} 13. Kf1 {[%emt 0:00:27]} O-O-O {[%emt 0:14:20]} 14. Ke2 {[%emt 0:01:03]} Nf8 {[%emt 0:18:10]} 15. f4 {[%emt 0:11:36]} exf4 {[%emt 0:02:02]} 16. Nxd6+ {[%emt 0:01:05]} cxd6 {[%emt 0:00:08]} 17. Bxf4 {[%emt 0:00:07]} Ne6 {[%emt 0:02:21]} 18. Be3 {[%emt 0:00:07]} g5 {[%emt 0:06:22]} 19. Rg1 {[%emt 0:00:35]} Rhg8 {[%emt 0:10:17]} 20. f3 {[%emt 0:00:57]} Rg6 {[%emt 0:05:12]} 21. Rg2 {[%emt 0:03:53]} Rdg8 {[%emt 0:03:00]} 22. Rag1 {[%emt 0:00:17]} d5 {[%emt 0:01:36]} 23. c4 {[%emt 0:08:11]} dxc4 {[%emt 0:08:41]} 24. dxc4 {[%emt 0:00:19]} c5 {[%emt 0:00:51]} 25. Rd1 {[%emt 0:01:32]} Nf4+ {[%emt 0:03:22]} 26. Bxf4 {[%emt 0:00:33]} gxf4 {[%emt 0:00:04]} 27. Rxg6 {[%emt 0:03:41]} Rxg6 {[%emt 0:03:14]} 28. Rd5 {[%emt 0:07:24]} Rg2+ {[%emt 0:00:24]} 29. Kd3 {[%emt 0:03:21]} Rxb2 {[%emt 0:00:13]} 30. Rxc5+ {[%emt 0:00:12]} Kd7 {[%emt 0:00:42]} 31. Rxh5 {[%emt 0:00:10]} Rxa2 {[%emt 0:00:08]} 32. e5 {[%emt 0:04:02]} Rf2 {[%emt 0:04:35]} 33. Ke4 {[%emt 0:00:13]} Rc2 {[%emt 0:00:02]} 34. Rf5 {[%emt 0:14:15]} Ke7 {[%emt 0:00:39]} 35. Kd5 {[%emt 0:06:18]} Rh2 {[%emt 0:00:35]} 36. Rxf4 {[%emt 0:00:47]} Rxh3 {[%emt 0:00:28]} 37. Rf6 {[%emt 0:00:20]} Rh1 {[%emt 0:00:55]} 38. Rb6 {[%emt 0:00:46]} Rd1+ {[%emt 0:00:07]} 39. Ke4 {[%emt 0:01:00]} Rd7 {[%emt 0:00:02]} 40. f4 {[%emt 0:00:29]} Rc7 {[%emt 0:00:19]} 41. Kd5 {[%emt 0:01:32]} Rd7+ {[%emt 0:00:56]} 42. Kc5 {[%emt 0:00:22]} Rc7+ {[%emt 0:00:26]} 43. Kb4 {[%emt 0:00:10]} a5+ {[%emt 0:01:19]} 44. Kc3 {[%emt 0:05:02]} a4 {[%emt 0:00:22]} 45. f5 {[%emt 0:01:26]} a3 {[%emt 0:00:32]} 46. Rb3 {[%emt 0:01:30]} a2 {[%emt 0:00:10]} 47. Kb2 {[%emt 0:01:00]} a1=Q+ {[%emt 0:00:15]} 48. Kxa1 {[%emt 0:00:09]} Rxc4 {[%emt 0:00:06]} 49. Rxb7+ {[%emt 0:00:10]} Ke8 {[%emt 0:00:20]} 50. f6 {[%emt 0:05:48]} Rc5 {[%emt 0:01:17]} 51. Re7+ {[%emt 0:00:12]} Kf8 {[%emt 0:00:02]} 52. Kb2 {[%emt 0:00:11]} Rc8 {[%emt 0:00:31]} 53. Kb3 {[%emt 0:00:11]} Rc1 {[%emt 0:00:53]} 54. Kb4 {[%emt 0:00:18]} Kg8 {[%emt 0:01:08]} 55. Re8+ {[%emt 0:01:39]} Kh7 {[%emt 0:00:14]} 56. Re7 {[%emt 0:09:20]} Kg6 {[%emt 0:00:14]} 57. Kb5 {[%emt 0:00:05]} Kf5 {[%emt 0:00:24]} 58. Rxf7 {[%emt 0:01:42]} Kxe5 {[%emt 0:00:09]} 59. Rf8 {[%emt 0:01:08]} Ke6 {[%emt 0:00:40]} 1/2-1/2

[Event "ESP-chT 2nd Division 2019"]
[Site "Linares"]
[Date "2019.08.22"]
[Round "5.20"]
[White "Guillo Longares, Cecilia"]
[Black "Castellet Menchon, Cora"]
[Result "1-0"]
[ECO "A57"]
[WhiteElo "1916"]
[BlackElo "1866"]
[Annotator "NA"]
[PlyCount "57"]
[EventDate "2019.08.19"]
[EventType "team-tourn"]
[EventCountry "ESP"]
[SourceTitle "playchess.com"]
[Source "ChessBase"]
[SourceQuality "1"]
[TimeControl "5400+30"]

1. d4 {[%emt 0:00:00]} Nf6 {[%emt 0:00:00]} 2. c4 {[%emt 0:00:00]} c5 {[%emt 0:00:00]} 3. d5 {[%emt 0:00:00]} b5 {[%emt 0:00:00]} 4. cxb5 {[%emt 0:00:00]} a6 {[%emt 0:00:00]} 5. e3 {[%emt 0:00:00]} g6 {[%emt 0:00:46]} 6. Nc3 {[%emt 0:00:00]} Bg7 {[%emt 0:00:17]} 7. e4 {[%emt 0:00:54]} d6 {[%emt 0:01:45]} 8. a4 {[%emt 0:00:05]} O-O {[%emt 0:05:55]} 9. Nf3 {[%emt 0:01:09]} axb5 {[%emt 0:04:11]} 10. Bxb5 {[%emt 0:00:09]} Ba6 {[%emt 0:00:55]} 11. Bd2 {[%emt 0:05:06]} Nbd7 {[%emt 0:19:54]} 12. O-O {[%emt 0:01:33]} Bxb5 {[%emt 0:07:15]} 13. axb5 {[%emt 0:00:10]} Nb6 {[%emt 0:00:45]} 14. Ra6 {[%emt 0:11:10]} Nc4 {[%emt 0:07:22]} 15. Qb3 {[%emt 0:02:17]} Nxd2 {[%emt 0:10:59]} 16. Nxd2 {[%emt 0:00:45]} Qc7 {[%emt 0:02:39]} 17. Rfa1 {[%emt 0:02:10]} Rxa6 {[%emt 0:05:12]} 18. bxa6 {[%emt 0:01:25]} Ra8 {[%emt 0:04:24]} 19. Nb5 {[%emt 0:04:11]} Qb8 {[%emt 0:05:24]} 20. a7 {[%emt 0:02:31]} Qb7 {[%emt 0:01:47]} 21. Qa4 {[%emt 0:02:11]} Bh6 {[%emt 0:05:26]} 22. Nb3 {[%emt 0:04:54]} Nxe4 {[%emt 0:02:53]} 23. Na5 {[%emt 0:03:04]} Qxd5 {[%emt 0:03:27]} 24. Nc7 {[%emt 0:01:18]} Qf5 {[%emt 0:00:53]} 25. Nxa8 {[%emt 0:00:55]} Qxf2+ {[%emt 0:00:56]} 26. Kh1 {[%emt 0:00:05]} Qe2 {[%emt 0:05:12]} 27. Qxe4 {[%emt 0:03:34]} Qxe4 {[%emt 0:00:07]} 28. Nc7 {[%emt 0:00:08]} Qh4 {[%emt 0:02:47]} 29. a8=Q+ {[%emt 0:00:08]} 1-0

[Event "ESP-chT 2nd Division 2019"]
[Site "Linares"]
[Date "2019.08.22"]
[Round "5.21"]
[White "Montoliu Cervero, Francisco"]
[Black "Ayats Llobera, Gerard"]
[Result "0-1"]
[ECO "C41"]
[WhiteElo "2393"]
[BlackElo "2377"]
[Annotator "NA"]
[PlyCount "94"]
[EventDate "2019.08.19"]
[EventType "team-tourn"]
[EventCountry "ESP"]
[SourceTitle "playchess.com"]
[Source "ChessBase"]
[SourceQuality "1"]
[TimeControl "5400+30"]

1. e4 {[%emt 0:00:00]} d6 {[%emt 0:00:12]} 2. d4 {[%emt 0:00:00]} Nf6 {[%emt 0:00:04]} 3. Nc3 {[%emt 0:00:07]} e5 {[%emt 0:00:16]} 4. Nf3 {[%emt 0:00:51]} Nbd7 {[%emt 0:00:05]} 5. Bc4 {[%emt 0:01:18]} Be7 {[%emt 0:00:09]} 6. O-O {[%emt 0:00:35]} O-O {[%emt 0:00:08]} 7. Re1 {[%emt 0:00:37]} c6 {[%emt 0:00:36]} 8. a4 {[%emt 0:01:04]} h6 {[%emt 0:11:24]} 9. h3 {[%emt 0:11:36]} Re8 {[%emt 0:01:34]} 10. b3 {[%emt 0:04:32]} Bf8 {[%emt 0:06:17]} 11. Ba3 {[%emt 0:04:36]} Qc7 {[%emt 0:06:09]} 12. Qd2 {[%emt 0:07:16]} exd4 {[%emt 0:08:14]} 13. Nxd4 {[%emt 0:06:40]} Ne5 {[%emt 0:07:36]} 14. Bf1 {[%emt 0:07:15]} Bd7 {[%emt 0:00:40]} 15. Rad1 {[%emt 0:04:24]} Rad8 {[%emt 0:00:21]} 16. f4 {[%emt 0:04:46]} Ng6 {[%emt 0:00:42]} 17. Qf2 {[%emt 0:00:53]} a6 {[%emt 0:04:10]} 18. g3 {[%emt 0:06:10]} b5 {[%emt 0:11:45]} 19. axb5 {[%emt 0:00:49]} axb5 {[%emt 0:00:14]} 20. Qf3 {[%emt 0:03:31]} Qc8 {[%emt 0:16:28]} 21. Nf5 {[%emt 0:05:57]} Bxf5 {[%emt 0:00:27]} 22. exf5 {[%emt 0:00:02]} Rxe1 {[%emt 0:01:38]} 23. Rxe1 {[%emt 0:00:47]} Qxf5 {[%emt 0:00:03]} 24. Qg2 {[%emt 0:09:53]} d5 {[%emt 0:05:34]} 25. Bd3 {[%emt 0:00:48]} Qd7 {[%emt 0:00:01]} 26. Bb2 {[%emt 0:02:13]} Re8 {[%emt 0:00:45]} 27. Rxe8 {[%emt 0:00:56]} Qxe8 {[%emt 0:00:02]} 28. Qf2 {[%emt 0:02:25]} Bd6 {[%emt 0:01:15]} 29. Ne2 {[%emt 0:02:14]} Ne4 {[%emt 0:01:39]} 30. Qe3 {[%emt 0:01:38]} Bc5 {[%emt 0:06:51]} 31. Nd4 Ne7 {[%emt 0:03:59]} 32. g4 {[%emt 0:02:56]} f5 {[%emt 0:01:52]} 33. Bxe4 {[%emt 0:04:21]} dxe4 {[%emt 0:03:03]} 34. Qc3 {[%emt 0:00:44]} Bb6 {[%emt 0:00:20]} 35. Kf1 {[%emt 0:02:12]} Qd7 {[%emt 0:00:02]} 36. Nf3 {[%emt 0:01:43]} Ng6 {[%emt 0:01:23]} 37. gxf5 {[%emt 0:01:18]} exf3 {[%emt 0:01:12]} 38. Qxf3 {[%emt 0:00:49]} Qxf5 {[%emt 0:00:17]} 39. Qxc6 {[%emt 0:00:25]} Qxf4+ {[%emt 0:00:15]} 40. Ke2 {[%emt 0:00:35]} Qf2+ {[%emt 0:00:28]} 41. Kd1 {[%emt 0:00:02]} Be3 {[%emt 0:01:00]} 42. Bc3 {[%emt 0:00:11]} Qf1+ {[%emt 0:01:01]} 43. Be1 {[%emt 0:00:01]} Bf2 {[%emt 0:00:24]} 44. Qe6+ {[%emt 0:00:52]} Kh7 {[%emt 0:00:06]} 45. c4 {[%emt 0:00:21]} Qd3+ {[%emt 0:00:09]} 46. Kc1 {[%emt 0:00:37]} Be3+ {[%emt 0:00:16]} 47. Kb2 {[%emt 0:00:01]} Qe2+ {[%emt 0:00:12]} 0-1

[Event "ESP-chT 2nd Division 2019"]
[Site "Linares"]
[Date "2019.08.22"]
[Round "5.22"]
[White "Martin Gonzalez, Angel"]
[Black "Silva Rodriguez, Julio Jose"]
[Result "1/2-1/2"]
[ECO "C03"]
[WhiteElo "2334"]
[BlackElo "2362"]
[Annotator "ChessBase"]
[PlyCount "211"]
[EventDate "2019.08.19"]
[EventType "team-tourn"]
[EventCountry "ESP"]
[SourceTitle "playchess.com"]
[Source "ChessBase"]
[SourceQuality "1"]
[TimeControl "5400+30"]

1. e4 {[%emt 0:00:00]} e6 {[%emt 0:00:00]} 2. d4 {[%emt 0:00:00]} d5 {[%emt 0:00:00]} 3. Nd2 {[%emt 0:00:41]} Be7 {[%emt 0:01:38]} 4. Ngf3 {[%emt 0:00:19]} Nf6 {[%emt 0:02:06]} 5. Bd3 {[%emt 0:00:28]} c5 {[%emt 0:00:21]} 6. c3 {[%emt 0:01:07]} cxd4 {[%emt 0:02:46]} 7. cxd4 {[%emt 0:01:10]} dxe4 {[%emt 0:00:10]} 8. Nxe4 {[%emt 0:00:06]} Bd7 {[%emt 0:00:06]} 9. Nc3 {[%emt 0:00:59]} Bc6 {[%emt 0:03:25]} 10. O-O {[%emt 0:02:09]} Nbd7 {[%emt 0:01:35]} 11. Re1 {[%emt 0:04:19]} Nb6 {[%emt 0:04:42]} 12. Ne5 {[%emt 0:01:49]} Nbd5 {[%emt 0:07:57]} 13. a3 {[%emt 0:14:03]} Rc8 {[%emt 0:08:35]} 14. Bc2 {[%emt 0:05:41]} Nxc3 {[%emt 0:29:31]} 15. bxc3 {[%emt 0:00:24]} Qd5 {[%emt 0:02:34]} 16. f3 {[%emt 0:01:24]} O-O {[%emt 0:01:01]} 17. a4 {[%emt 0:20:07]} Rfd8 {[%emt 0:03:30]} 18. a5 {[%emt 0:00:57]} Be8 {[%emt 0:03:11]} 19. Qd3 {[%emt 0:03:59]} Bb5 {[%emt 0:03:06]} 20. Qe3 {[%emt 0:00:17]} Bd6 {[%emt 0:03:25]} 21. f4 {[%emt 0:10:16]} Bb4 {[%emt 0:03:53]} 22. Bd2 {[%emt 0:01:36]} Rc7 {[%emt 0:08:36]} 23. Bd1 {[%emt 0:10:14]} Bf8 {[%emt 0:01:11]} 24. Qh3 {[%emt 0:02:39]} Bc4 {[%emt 0:02:03]} 25. Bf3 {[%emt 0:02:43]} Qd6 {[%emt 0:00:28]} 26. Nxc4 {[%emt 0:00:08]} Rxc4 {[%emt 0:00:16]} 27. Bxb7 {[%emt 0:00:02]} Nd5 {[%emt 0:01:28]} 28. Qf3 {[%emt 0:02:10]} Qc7 {[%emt 0:00:58]} 29. Ba6 {[%emt 0:00:40]} Rxc3 {[%emt 0:01:29]} 30. Bxc3 {[%emt 0:00:15]} Nxc3 {[%emt 0:00:04]} 31. f5 {[%emt 0:02:32]} exf5 {[%emt 0:01:05]} 32. Qxf5 {[%emt 0:00:13]} g6 {[%emt 0:02:03]} 33. Qd3 {[%emt 0:03:33]} Bc5 {[%emt 0:01:52]} 34. Kh1 {[%emt 0:01:41]} Bxd4 {[%emt 0:00:30]} 35. Qc4 {[%emt 0:02:13]} Qxc4 {[%emt 0:01:02]} 36. Bxc4 {[%emt 0:00:02]} Ne4 {[%emt 0:00:12]} 37. Rxe4 {[%emt 0:02:11]} Bxa1 {[%emt 0:00:09]} 38. g3 {[%emt 0:00:06]} Rd7 {[%emt 0:00:13]} 39. a6 {[%emt 0:00:23]} Kg7 {[%emt 0:00:10]} 40. Re8 {[%emt 0:00:28]} Bd4 {[%emt 0:00:39]} 41. Rb8 {[%emt 0:00:18]} Rc7 {[%emt 0:00:40]} 42. Bd5 {[%emt 0:00:42]} Rc2 {[%emt 0:00:32]} 43. Rb7 {[%emt 0:00:15]} Rf2 {[%emt 0:00:18]} 44. Rd7 {[%emt 0:00:43]} Bb6 {[%emt 0:00:52]} 45. Rb7 {[%emt 0:01:05]} Be3 {[%emt 0:00:11]} 46. Re7 {[%emt 0:00:05]} Bd4 {[%emt 0:00:02]} 47. Rd7 {[%emt 0:00:02]} Bb6 {[%emt 0:00:12]} 48. Rb7 {[%emt 0:00:10]} Rf6 {[%emt 0:00:02]} 49. Kg2 {[%emt 0:02:45]} g5 {[%emt 0:00:40]} 50. g4 {[%emt 0:00:07]} Bd4 {[%emt 0:00:41]} 51. Rd7 {[%emt 0:00:29]} Bc5 {[%emt 0:00:50]} 52. Rc7 {[%emt 0:01:07]} Rf2+ {[%emt 0:01:28]} 53. Kg3 {[%emt 0:00:00]} Bd4 {[%emt 0:00:17]} 54. Rd7 {[%emt 0:00:16]} Rf4 {[%emt 0:00:29]} 55. h3 {[%emt 0:00:36]} h6 {[%emt 0:00:45]} 56. Kg2 {[%emt 0:00:08]} Rf2+ {[%emt 0:00:10]} 57. Kg3 {[%emt 0:00:09]} Rf6 {[%emt 0:00:26]} 58. Kg2 {[%emt 0:00:00]} Bb6 {[%emt 0:00:55]} 59. Rb7 {[%emt 0:00:08]} Kf8 {[%emt 0:00:21]} 60. Rb8+ {[%emt 0:02:42]} Kg7 {[%emt 0:00:52]} 61. Rb7 {[%emt 0:00:01]} Rf2+ {[%emt 0:00:45]} 62. Kg3 {[%emt 0:00:09]} Bc5 {[%emt 0:00:19]} 63. Rc7 {[%emt 0:00:17]} Bd4 {[%emt 0:00:22]} 64. Rd7 {[%emt 0:00:28]} Rf4 {[%emt 0:00:23]} 65. Kg2 {[%emt 0:02:51]} Bc5 {[%emt 0:01:02]} 66. Rc7 {[%emt 0:00:11]} Be3 {[%emt 0:00:25]} 67. Re7 {[%emt 0:00:13]} Bd4 {[%emt 0:00:29]} 68. Rd7 {[%emt 0:00:08]} Rf2+ {[%emt 0:00:27]} 69. Kg3 {[%emt 0:00:08]} Rf6 {[%emt 0:00:36]} 70. Kg2 {[%emt 0:03:35]} Kf8 {[%emt 0:00:44]} 71. Bxf7 {[%emt 0:01:01]} Rxf7 {[%emt 0:00:23]} 72. Rxd4 {[%emt 0:00:04]} Rf6 {[%emt 0:00:08]} 73. Ra4 {[%emt 0:00:12]} Ke7 {[%emt 0:00:12]} 74. Kg3 {[%emt 0:01:19]} Rb6 {[%emt 0:00:26]} 75. Ra3 {[%emt 0:00:16]} Kd6 {[%emt 0:00:20]} 76. h4 {[%emt 0:00:01]} Kc5 {[%emt 0:00:46]} 77. hxg5 {[%emt 0:00:50]} hxg5 {[%emt 0:00:02]} 78. Kf3 {[%emt 0:00:42]} Kb4 {[%emt 0:00:31]} 79. Ra1 {[%emt 0:00:13]} Rf6+ {[%emt 0:00:28]} 80. Kg3 {[%emt 0:00:39]} Kb5 {[%emt 0:00:18]} 81. Re1 {[%emt 0:00:36]} Kxa6 {[%emt 0:01:14]} 82. Re5 {[%emt 0:00:01]} Rg6 {[%emt 0:00:12]} 83. Kf3 {[%emt 0:00:00]} Kb6 {[%emt 0:00:17]} 84. Ke4 {[%emt 0:00:02]} a5 {[%emt 0:00:10]} 85. Kd4 {[%emt 0:01:10]} Rd6+ {[%emt 0:01:26]} 86. Kc4 {[%emt 0:00:02]} Rc6+ {[%emt 0:00:15]} 87. Kd4 {[%emt 0:00:23]} Rd6+ {[%emt 0:00:12]} 88. Kc4 {[%emt 0:00:02]} Rc6+ {[%emt 0:00:06]} 89. Kd4 {[%emt 0:00:03]} a4 {[%emt 0:00:27]} 90. Rxg5 {[%emt 0:00:01]} a3 {[%emt 0:00:24]} 91. Rg8 {[%emt 0:00:18]} Ka5 {[%emt 0:00:39]} 92. Ra8+ {[%emt 0:00:21]} Kb4 {[%emt 0:00:18]} 93. Rb8+ {[%emt 0:00:33]} Ka4 {[%emt 0:00:09]} 94. Ra8+ {[%emt 0:00:14]} Kb3 {[%emt 0:00:25]} 95. Rb8+ {[%emt 0:00:05]} Kc2 {[%emt 0:00:17]} 96. Ra8 {[%emt 0:00:01]} Rc3 {[%emt 0:01:58]} 97. g5 {[%emt 0:00:45]} Kb2 {[%emt 0:00:20]} 98. Ke5 {[%emt 0:00:24]} a2 {[%emt 0:00:48]} 99. Rxa2+ {[%emt 0:00:13]} Kxa2 {[%emt 0:00:04]} 100. g6 {[%emt 0:00:06]} Rc6 {[%emt 0:00:25]} 101. Kf5 {[%emt 0:00:04]} Kb3 {[%emt 0:00:20]} 102. g7 {[%emt 0:00:00]} Rc8 {[%emt 0:00:10]} 103. Ke6 {[%emt 0:00:01]} Kc4 {[%emt 0:00:13]} 104. Kf7 {[%emt 0:00:00]} Rc7+ {[%emt 0:00:13]} 105. Kf6 {[%emt 0:00:01]} Rxg7 {[%emt 0:00:13]} 106. Kxg7 {[%emt 0:00:01]} 1/2-1/2

[Event "ESP-chT 2nd Division 2019"]
[Site "Linares"]
[Date "2019.08.22"]
[Round "5.23"]
[White "Nieves Cabanes, Jose Manuel"]
[Black "Jimenez Ruano, Adrian"]
[Result "1-0"]
[ECO "A45"]
[WhiteElo "2311"]
[BlackElo "2278"]
[Annotator "NA"]
[PlyCount "65"]
[EventDate "2019.08.19"]
[EventType "team-tourn"]
[EventCountry "ESP"]
[SourceTitle "playchess.com"]
[Source "ChessBase"]
[SourceQuality "1"]
[TimeControl "5400+30"]

1. d4 {[%emt 0:00:00]} Nf6 {[%emt 0:00:00]} 2. Bf4 {[%emt 0:00:00]} d5 {[%emt 0:00:58]} 3. e3 {[%emt 0:02:02]} c5 {[%emt 0:05:04]} 4. c3 {[%emt 0:02:48]} Qb6 {[%emt 0:00:06]} 5. Qb3 {[%emt 0:01:20]} c4 {[%emt 0:00:47]} 6. Qc2 {[%emt 0:00:57]} Nc6 {[%emt 0:00:10]} 7. Nd2 {[%emt 0:00:53]} g6 {[%emt 0:06:07]} 8. e4 dxe4 {[%emt 0:15:50]} 9. Bxc4 {[%emt 0:06:48]} Na5 {[%emt 0:00:21]} 10. Be2 {[%emt 0:04:44]} Bf5 {[%emt 0:03:40]} 11. Be3 {[%emt 0:05:14]} Nd5 {[%emt 0:03:58]} 12. g4 {[%emt 0:08:28]} Nxe3 {[%emt 0:00:41]} 13. fxe3 {[%emt 0:00:10]} Bd7 {[%emt 0:03:19]} 14. Nxe4 {[%emt 0:03:58]} f5 {[%emt 0:09:08]} 15. gxf5 {[%emt 0:07:22]} Bxf5 {[%emt 0:00:43]} 16. Bd3 {[%emt 0:07:32]} Bh6 {[%emt 0:07:48]} 17. Qe2 {[%emt 0:06:07]} Rc8 {[%emt 0:12:43]} 18. Bb5+ {[%emt 0:05:21]} Kf7 {[%emt 0:02:58]} 19. Ng3 {[%emt 0:03:02]} Be6 {[%emt 0:01:33]} 20. Nf3 {[%emt 0:01:46]} Kg7 {[%emt 0:00:48]} 21. Ne5 {[%emt 0:03:04]} Rhf8 {[%emt 0:06:21]} 22. Bd3 {[%emt 0:05:31]} Bh3 {[%emt 0:04:53]} 23. Rg1 {[%emt 0:02:45]} Kh8 {[%emt 0:00:44]} 24. Ne4 {[%emt 0:01:17]} Bf5 {[%emt 0:02:31]} 25. h4 {[%emt 0:03:35]} Qe6 {[%emt 0:04:58]} 26. h5 {[%emt 0:01:01]} Bxe4 {[%emt 0:00:14]} 27. Bxe4 {[%emt 0:00:14]} Qh3 {[%emt 0:00:00]} 28. Kd2 {[%emt 0:05:15]} Qh4 {[%emt 0:01:50]} 29. Rg4 {[%emt 0:02:44]} Qf2 {[%emt 0:01:22]} 30. hxg6 {[%emt 0:01:37]} Rcd8 {[%emt 0:03:54]} 31. Qxf2 {[%emt 0:01:31]} Rxf2+ {[%emt 0:00:01]} 32. Kd3 {[%emt 0:00:33]} hxg6 {[%emt 0:01:58]} 33. Rh1 {[%emt 0:00:20]} 1-0

[Event "ESP-chT 2nd Division 2019"]
[Site "Linares"]
[Date "2019.08.22"]
[Round "5.24"]
[White "Sanchez Lopez, Juan Manuel"]
[Black "Nieves Cabanes, Javier"]
[Result "1-0"]
[ECO "A20"]
[WhiteElo "2084"]
[BlackElo "2211"]
[Annotator "NA"]
[PlyCount "107"]
[EventDate "2019.08.19"]
[EventType "team-tourn"]
[EventCountry "ESP"]
[SourceTitle "playchess.com"]
[Source "ChessBase"]
[SourceQuality "1"]
[TimeControl "5400+30"]

1. c4 {[%emt 0:04:21]} e5 {[%emt 0:00:00]} 2. g3 {[%emt 0:00:04]} Nf6 {[%emt 0:00:19]} 3. Bg2 {[%emt 0:00:05]} h6 {[%emt 0:00:44]} 4. d3 {[%emt 0:00:19]} Bc5 {[%emt 0:04:30]} 5. Nc3 {[%emt 0:00:09]} Nc6 {[%emt 0:00:49]} 6. e3 {[%emt 0:00:04]} d6 {[%emt 0:05:15]} 7. Nge2 {[%emt 0:00:53]} a6 {[%emt 0:00:34]} 8. a3 {[%emt 0:00:10]} O-O {[%emt 0:00:55]} 9. O-O {[%emt 0:00:43]} Bg4 {[%emt 0:01:43]} 10. b4 {[%emt 0:00:50]} Ba7 {[%emt 0:00:22]} 11. Qc2 {[%emt 0:02:18]} Qd7 {[%emt 0:03:48]} 12. Bb2 {[%emt 0:06:20]} Bh3 {[%emt 0:01:45]} 13. Nd5 {[%emt 0:01:39]} Nxd5 {[%emt 0:04:18]} 14. cxd5 {[%emt 0:00:13]} Bxg2 {[%emt 0:00:16]} 15. Kxg2 {[%emt 0:01:00]} Ne7 {[%emt 0:00:05]} 16. Rac1 {[%emt 0:01:57]} Rac8 {[%emt 0:01:22]} 17. e4 {[%emt 0:04:26]} c6 {[%emt 0:02:52]} 18. dxc6 {[%emt 0:00:33]} Nxc6 {[%emt 0:00:44]} 19. Qb3 {[%emt 0:17:39]} Kh8 {[%emt 0:02:15]} 20. f4 {[%emt 0:03:24]} f5 {[%emt 0:01:06]} 21. fxe5 {[%emt 0:08:13]} Nxe5 {[%emt 0:11:36]} 22. d4 {[%emt 0:05:56]} Rxc1 {[%emt 0:05:20]} 23. Bxc1 {[%emt 0:04:05]} Ng4 {[%emt 0:02:13]} 24. Nf4 {[%emt 0:04:01]} Re8 {[%emt 0:00:38]} 25. Qd5 {[%emt 0:12:02]} Nf6 {[%emt 0:13:38]} 26. Qxf5 {[%emt 0:04:29]} Rxe4 {[%emt 0:00:59]} 27. Qxd7 {[%emt 0:07:00]} Nxd7 {[%emt 0:00:02]} 28. Kf3 {[%emt 0:00:33]} Re8 {[%emt 0:04:42]} 29. Bb2 {[%emt 0:00:57]} Nf6 {[%emt 0:01:52]} 30. Rc1 {[%emt 0:04:02]} Bb6 {[%emt 0:00:50]} 31. d5 {[%emt 0:00:33]} Re3+ {[%emt 0:05:01]} 32. Kg2 {[%emt 0:00:07]} Kh7 {[%emt 0:00:40]} 33. Bxf6 {[%emt 0:02:13]} gxf6 {[%emt 0:00:40]} 34. Rc8 {[%emt 0:01:18]} Rxa3 {[%emt 0:04:06]} 35. Rb8 {[%emt 0:00:11]} Bd4 {[%emt 0:01:31]} 36. Rxb7+ {[%emt 0:00:09]} Kg8 {[%emt 0:00:15]} 37. Rb8+ {[%emt 0:04:32]} Kf7 {[%emt 0:00:48]} 38. Rb7+ {[%emt 0:00:37]} Ke8 {[%emt 0:00:37]} 39. Ne6 {[%emt 0:00:30]} Be5 {[%emt 0:01:10]} 40. Ra7 {[%emt 0:00:38]} Ra4 {[%emt 0:02:51]} 41. Rb7 {[%emt 0:00:39]} h5 {[%emt 0:01:15]} 42. b5 {[%emt 0:00:29]} axb5 {[%emt 0:00:30]} 43. Rxb5 {[%emt 0:00:04]} Kf7 {[%emt 0:00:44]} 44. Rb7+ {[%emt 0:00:13]} Kg6 {[%emt 0:00:33]} 45. Rg7+ {[%emt 0:00:20]} Kh6 {[%emt 0:02:15]} 46. Rg8 {[%emt 0:00:38]} Ra5 {[%emt 0:01:12]} 47. Nf8 {[%emt 0:00:23]} h4 {[%emt 0:01:15]} 48. g4 {[%emt 0:00:06]} Ra2+ {[%emt 0:00:42]} 49. Kf3 {[%emt 0:00:12]} Ra3+ {[%emt 0:00:29]} 50. Ke2 {[%emt 0:00:09]} Ra2+ {[%emt 0:00:37]} 51. Kd3 {[%emt 0:00:06]} Ra3+ {[%emt 0:00:05]} 52. Kc2 {[%emt 0:01:02]} Ra2+ {[%emt 0:00:10]} 53. Kb3 {[%emt 0:00:10]} Rb2+ {[%emt 0:01:54]} 54. Ka3 {[%emt 0:00:06]} 1-0

[Event "ESP-chT 2nd Division 2019"]
[Site "Linares"]
[Date "2019.08.22"]
[Round "5.25"]
[White "Ortega Sanchis, Angela"]
[Black "Catalan Gasque, Noelia"]
[Result "1/2-1/2"]
[ECO "C11"]
[WhiteElo "1675"]
[BlackElo "1789"]
[Annotator "NA"]
[PlyCount "77"]
[EventDate "2019.08.19"]
[EventType "team-tourn"]
[EventCountry "ESP"]
[SourceTitle "playchess.com"]
[Source "ChessBase"]
[SourceQuality "1"]
[TimeControl "5400+30"]

1. e4 {[%emt 0:00:00]} e6 {[%emt 0:00:00]} 2. d4 {[%emt 0:00:00]} d5 {[%emt 0:00:00]} 3. Nc3 {[%emt 0:00:00]} Nf6 {[%emt 0:00:00]} 4. e5 {[%emt 0:00:08]} Nfd7 {[%emt 0:00:00]} 5. f4 {[%emt 0:00:08]} c5 {[%emt 0:00:00]} 6. Nf3 {[%emt 0:00:05]} Nc6 {[%emt 0:00:05]} 7. Be3 {[%emt 0:00:21]} cxd4 {[%emt 0:00:14]} 8. Nxd4 {[%emt 0:01:02]} Bc5 {[%emt 0:00:08]} 9. Be2 {[%emt 0:04:01]} a6 {[%emt 0:06:41]} 10. O-O {[%emt 0:05:48]} Nxd4 {[%emt 0:07:13]} 11. Bxd4 {[%emt 0:00:08]} Qb6 {[%emt 0:02:06]} 12. Bxc5 {[%emt 0:01:03]} Nxc5 {[%emt 0:04:24]} 13. Qd4 {[%emt 0:02:09]} O-O {[%emt 0:03:47]} 14. Kh1 {[%emt 0:06:49]} g6 {[%emt 0:11:45]} 15. Rf3 {[%emt 0:07:55]} Nd7 {[%emt 0:10:58]} 16. Qd2 {[%emt 0:05:46]} f6 {[%emt 0:05:48]} 17. Raf1 {[%emt 0:29:58]} fxe5 {[%emt 0:03:42]} 18. fxe5 {[%emt 0:23:59]} Rxf3 {[%emt 0:00:27]} 19. Bxf3 {[%emt 0:01:08]} Nxe5 {[%emt 0:07:43]} 20. Bxd5 {[%emt 0:02:20]} exd5 {[%emt 0:07:57]} 21. Qxd5+ {[%emt 0:00:12]} Be6 {[%emt 0:04:41]} 22. Qxe5 {[%emt 0:01:02]} Rf8 {[%emt 0:03:33]} 23. Rxf8+ {[%emt 0:02:07]} Kxf8 {[%emt 0:00:11]} 24. Qf6+ {[%emt 0:00:26]} Ke8 {[%emt 0:02:29]} 25. Qh8+ {[%emt 0:02:34]} Kf7 {[%emt 0:01:48]} 26. Qxh7+ {[%emt 0:00:23]} Kf8 {[%emt 0:04:58]} 27. Qh6+ {[%emt 0:01:30]} Kf7 {[%emt 0:03:09]} 28. Qf4+ {[%emt 0:01:01]} Kg7 {[%emt 0:01:07]} 29. Qe5+ {[%emt 0:01:16]} Kf7 {[%emt 0:01:52]} 30. b3 {[%emt 0:01:00]} Qf2 {[%emt 0:02:44]} 31. Qe2 {[%emt 0:00:05]} Qd4 {[%emt 0:00:27]} 32. Qf3+ {[%emt 0:00:38]} Ke8 {[%emt 0:00:37]} 33. h3 {[%emt 0:00:43]} Bf5 {[%emt 0:01:06]} 34. Qe2+ {[%emt 0:00:42]} Kf8 {[%emt 0:00:21]} 35. Qf3 {[%emt 0:00:28]} Ke8 {[%emt 0:00:06]} 36. g4 {[%emt 0:00:19]} Bd7 {[%emt 0:00:33]} 37. Qe2+ {[%emt 0:00:42]} Kf8 {[%emt 0:00:22]} 38. Qf3+ {[%emt 0:00:30]} Ke8 {[%emt 0:00:15]} 39. Qe2+ 1/2-1/2